Workbook

Sheet scenario 3 template
A1: QAP Delay Scenario 3
A3: Given data | B3: Value | C3: Units | E3: Value | F3: Units
A4: average arrival rate, v | C4: veh/hr | F4: veh/sec
A5: rate during red, vr | C5: veh/hr | F5: veh/sec
A6: rate during green, vg | C6: veh/hr | F6: veh/sec
A7: Cycle length, C | C7: sec
A8: Effective red, r | C8: sec
A9: Effective green, g | C9: sec
A10: Green ratio, g/C
A11: Red ratio, r/C
A12: Saturation flow rate, s | C12: veh/hr | F12: veh/sec
A14: Calculated data - Delay
A15: Rate of queue clearance | C15: veh/hr | F15: veh/sec
A16: Maximum queue (vrr) | C16: veh
A17: Rate of queue formation | C17: =C5 -> veh/hr | D17: 0 | F17: veh/sec
A18: Rate of queue clearance | C18: veh/hr | F18: veh/sec
A19: Queue service time (gs) | C19: sec
A20: Veh arrive in one cycle | C20: veh
A21: Total delay | C21: veh-sec
A22: Average delay per vehicle | C22: sec/veh

Sheet scenario3 formulas
A1: QAP Delay Scenario 3
A3: Given data | B3: Value | C3: Units | E3: Value | F3: Units
A4: average arrival rate, v | B4: =B5*B11+B6*B10 -> 330 | C4: veh/hr | E4: =B4/3600 -> 0.09166666667 | F4: veh/sec
A5: rate during red, vr | B5: 400 | C5: veh/hr | E5: =B5/3600 -> 0.1111111111 | F5: veh/sec
A6: rate during green, vg | B6: 250 | C6: veh/hr | E6: 0.06944444444 | F6: veh/sec
A7: Cycle length, C | B7: 75 | C7: sec
A8: Effective red, r | B8: 40 | C8: sec
A9: Effective green, g | B9: 35 | C9: sec
A10: Green ratio, g/C | B10: =B9/B7 -> 0.4666666667
A11: Red ratio, r/C | B11: =B8/B7 -> 0.5333333333
A12: Saturation flow rate, s | B12: 1900 | C12: veh/hr | E12: =B12/3600 -> 0.5277777778 | F12: veh/sec
A14: Calculated data - Delay
A15: Rate of queue clearance | B15: =B12-B6 -> 1650 | C15: veh/hr | E15: =B15/3600 -> 0.4583333333 | F15: veh/sec
A16: Maximum queue (vrr) | B16: =E5*B8 -> 4.444444444 | C16: veh
A17: Rate of queue formation | B17: =B5 -> 400 | C17: =C5 -> veh/hr | E17: 0.1111111111 | F17: veh/sec
A18: Rate of queue clearance | B18: =B12-B6 -> 1650 | C18: veh/hr | E18: =B18/3600 -> 0.4583333333 | F18: veh/sec
A19: Queue service time (gs) | B19: =(E5*B8)/(E12-E6) -> 9.696969697 | C19: sec
A20: Veh arrive in one cycle | B20: =E4*B7 -> 6.875 | C20: veh
A21: Total delay | B21: =0.5*(B8+B19)*B16 -> 110.4377104 | C21: veh-sec
A22: Average delay per vehicle | B22: =B21/(E4*B7) -> 16.06366697 | C22: sec/veh

Sheet scenario3 QAP example 25
A1: QAP Delay Scenario 3
A3: Given data | B3: Value | C3: Units | E3: Value | F3: Units | I3: Queue Accumulation Polygon
A4: average arrival rate, v | B4: =B5*B11+B6*B10 -> 330 | C4: veh/hr | E4: =B4/3600 -> 0.09166666667 | F4: veh/sec | I4: Required data | J4: Queue | K4: Time | M4: Timing intervals | N4: Y | O4: X
A5: rate during red, vr | B5: 400 | C5: veh/hr | E5: =B5/3600 -> 0.1111111111 | F5: veh/sec | I5: Origin | J5: 0 | K5: 0 | M5: Begin red | N5: 0 | O5: 0
A6: rate during green, vg | B6: 250 | C6: veh/hr | E6: 0.06944444444 | F6: veh/sec | I6: End of red | J6: =B16 -> 4.444444444 | K6: =B8 -> 40 | M6: End red | N6: 0 | O6: =B8 -> 40
A7: Cycle length, C | B7: 75 | C7: sec | I7: Queue clears | J7: 0 | K7: =K6+B19 -> 49.6969697 | M7: Begin green | N7: 0 | O7: =O6 -> 40
A8: Effective red, r | B8: 40 | C8: sec | I8: End of green | J8: 0 | K8: =B7 -> 75 | M8: End green | N8: 0 | O8: =B7 -> 75
A9: Effective green, g | B9: 35 | C9: sec
A10: Green ratio, g/C | B10: =B9/B7 -> 0.4666666667
A11: Red ratio, r/C | B11: =B8/B7 -> 0.5333333333
A12: Saturation flow rate, s | B12: 1900 | C12: veh/hr | E12: =B12/3600 -> 0.5277777778 | F12: veh/sec
A14: Calculated data - Delay
A15: Rate of queue clearance | B15: =B12-B6 -> 1650 | C15: veh/hr | E15: =B15/3600 -> 0.4583333333 | F15: veh/sec
A16: Maximum queue (vrr) | B16: =E5*B8 -> 4.444444444 | C16: veh
A17: Rate of queue formation | B17: =B5 -> 400 | C17: =C5 -> veh/hr | E17: 0.1111111111 | F17: veh/sec
A18: Rate of queue clearance | B18: =B12-B6 -> 1650 | C18: veh/hr | E18: =B18/3600 -> 0.4583333333 | F18: veh/sec
A19: Queue service time (gs) | B19: =(E5*B8)/(E12-E6) -> 9.696969697 | C19: sec
A20: Veh arrive in one cycle | B20: =E4*B7 -> 6.875 | C20: veh
A21: Total delay | B21: =0.5*(B8+B19)*B16 -> 110.4377104 | C21: veh-sec
A22: Average delay per vehicle | B22: =B21/(E4*B7) -> 16.06366697 | C22: sec/veh
